fUST/lending_fUST_20240916
["ID","MTS","AMOUNT","RATE_DAILY","PERIOD"]
[338313519,1726491042957,-500.0,0.00019178,2]
[338313520,1726491042967,-500.0,0.00019178,2]
[338313521,1726491042976,-500.0,0.00019178,2]
[338313522,1726491042986,-500.0,0.00019178,2]
[338313523,1726491042995,-250.0,0.00019178,2]
[338313524,1726491043004,-527.10965793,0.00019178,2]
[338313525,1726491043014,-398.70590321,0.00019178,2]
[338313526,1726491043024,-500.0,0.00019178,2]
[338313527,1726491043033,-500.0,0.00019178,2]
[338313528,1726491043042,-506.87827341,0.00019178,2]
[338313529,1726491043052,-500.0,0.00019178,2]
[338313530,1726491043061,-500.0,0.00019178,2]
[338313531,1726491043070,-558.80591887,0.00019178,2]
[338313532,1726491043079,-500.0,0.00019178,2]
[338313533,1726491043089,-500.0,0.00019178,2]
[338313534,1726491043098,-500.0,0.00019178,2]
[338313535,1726491043107,-500.0,0.00019178,2]
[338313536,1726491043117,-500.0,0.00019178,2]
[338313537,1726491043127,-1025.4,0.00019178,2]
[338313538,1726491043136,-627.79,0.00019178,2]
[338313539,1726491043146,-500.0,0.00019178,2]
[338313540,1726491043155,-151.0,0.00019178,2]
[338313541,1726491043165,-500.0,0.00019178,2]
[338313542,1726491043174,-500.0,0.00019178,2]
[338313543,1726491043184,-500.0,0.00019178,2]
[338313544,1726491043193,-500.0,0.00019178,2]
[338313545,1726491043203,-500.0,0.00019178,2]
[338313546,1726491043212,-151.0,0.00019178,2]
[338313547,1726491043222,-151.0,0.00019178,2]
[338313548,1726491043231,-724.81,0.00019178,2]
[338313549,1726491043241,-323.26976223,0.00019178,2]
[338313550,1726491043253,-500.0,0.00019178,2]
[338313551,1726491043263,-502.98,0.00019178,2]
[338313552,1726491043272,-151.0,0.00019178,2]
[338313553,1726491043281,-1505.24,0.00019178,2]
[338313554,1726491043291,-500.0,0.00019178,2]
[338313555,1726491043303,-500.0,0.00019178,2]
[338313556,1726491043313,-151.0,0.00019178,2]
[338313559,1726491043325,-500.0,0.00019178,2]
[338313561,1726491043336,-624.12,0.00019178,2]
[338313563,1726491043345,-578.4,0.00019178,2]
[338313565,1726491043355,-500.0,0.00019178,2]
[338313567,1726491043364,-500.0,0.00019178,2]
[338313571,1726491043374,-500.0,0.00019178,2]
[338313573,1726491043385,-500.0,0.00019178,2]
[338313575,1726491043395,-500.0,0.00019178,2]
[338313577,1726491043404,-500.0,0.00019178,2]
[338313579,1726491043414,-500.0,0.00019178,2]
[338313581,1726491043424,-563.29117505,0.00019178,2]
[338313584,1726491043434,-1688.58,0.00019178,2]
[338313587,1726491043444,-151.0,0.00019178,2]
[338313589,1726491043454,-500.0,0.00019178,2]
[338313590,1726491043464,-500.0,0.00019178,2]
[338313591,1726491043473,-500.0,0.00019178,2]
[338313593,1726491043483,-664.63,0.00019178,2]
[338313594,1726491043492,-500.0,0.00019178,2]
[338313595,1726491043501,-1852.34,0.00019178,2]
[338313596,1726491043510,-500.0,0.00019178,2]
[338313597,1726491043520,-500.0,0.00019178,2]
[338313598,1726491043532,-500.0,0.00019178,2]
[338313600,1726491043542,-500.0,0.00019178,2]
[338313601,1726491043554,-500.0,0.00019178,2]
[338313602,1726491043564,-500.0,0.00019178,2]
[338313603,1726491043573,-1111.04,0.00019178,2]
[338313604,1726491043583,-500.0,0.00019178,2]
[338313605,1726491043592,-500.0,0.00019178,2]
[338313607,1726491043601,-500.0,0.00019178,2]
[338313609,1726491043611,-500.0,0.00019178,2]
[338313610,1726491043621,-501.73184412,0.00019178,2]
[338313611,1726491043630,-500.0,0.00019178,2]
[338313612,1726491043639,-500.0,0.00019178,2]
[338313613,1726491043648,-500.0,0.00019178,2]
[338313614,1726491043657,-500.0,0.00019178,2]
[338313615,1726491043666,-507.61,0.00019178,2]
[338313616,1726491043676,-500.0,0.00019178,2]
[338313617,1726491043685,-500.0,0.00019178,2]
[338313618,1726491043694,-500.0,0.00019178,2]
[338313619,1726491043703,-2004.8,0.00019178,2]
[338313620,1726491043712,-520.26,0.00019178,2]
[338313621,1726491043722,-715.81,0.00019178,2]
[338313622,1726491043732,-528.12060386,0.00019178,2]
[338313623,1726491043741,-500.0,0.00019178,2]
[338313624,1726491043750,-500.0,0.00019178,2]
[338313625,1726491043759,-1039.73,0.00019178,2]
[338313626,1726491043768,-151.0,0.00019178,2]
[338313627,1726491043778,-703.32,0.00019178,2]
[338313628,1726491043787,-500.0,0.00019178,2]
[338313629,1726491043796,-758.26,0.00019178,2]
[338313630,1726491043806,-500.0,0.00019178,2]
[338313631,1726491043816,-151.0,0.00019178,2]
[338313632,1726491043825,-244.02655,0.00019178,2]
[338313633,1726491043834,-152.207928,0.00019178,2]
[338313634,1726491043843,-500.0,0.00019178,2]
[338313635,1726491043853,-151.0,0.00019178,2]
[338313636,1726491043863,-605.16,0.00019178,2]
[338313637,1726491043872,-919.06,0.00019178,2]
[338313638,1726491043882,-1728.92,0.00019178,2]
[338313639,1726491043891,-1398.26,0.00019178,2]
[338313640,1726491043900,-244.02655,0.00019178,2]
[338313641,1726491043909,-500.0,0.00019178,2]
[338313642,1726491043919,-1086.09,0.00019178,2]
[338313643,1726491043928,-515.66,0.00019178,2]
[338313644,1726491043937,-500.0,0.00019178,2]
[338313645,1726491043947,-513.93,0.00019178,2]
[338313646,1726491043957,-500.0,0.00019178,2]
[338313647,1726491043966,-559.25,0.00019178,2]
[338313648,1726491043975,-500.0,0.00019178,2]
[338313649,1726491043984,-500.0,0.00019178,2]
[338313650,1726491043994,-500.0,0.00019178,2]
[338313651,1726491044003,-151.0,0.00019178,2]
[338313652,1726491044013,-789.06,0.00019178,2]
[338313653,1726491044023,-575.25536785,0.00019178,2]
[338313654,1726491044032,-3526.03,0.00019178,2]
[338313655,1726491044042,-500.0,0.00019178,2]
[338313656,1726491044053,-500.0,0.00019178,2]
[338313657,1726491044062,-618.36,0.00019178,2]
[338313658,1726491044071,-500.0,0.00019178,2]
[338313659,1726491044081,-500.0,0.00019178,2]
[338313660,1726491044090,-500.0,0.00019178,2]
[338313661,1726491044099,-500.0,0.00019178,2]
[338313662,1726491044108,-211.78010856,0.00019178,2]
[338313663,1726491044118,-500.0,0.00019178,2]
[338313664,1726491044127,-500.0,0.00019178,2]
[338313665,1726491044136,-331.45647824,0.00019178,2]
[338313666,1726491044146,-500.0,0.00019178,2]
[338313667,1726491044155,-500.0,0.00019178,2]
[338313668,1726491044164,-500.0,0.00019178,2]
[338313669,1726491044173,-500.0,0.00019178,2]
[338313670,1726491044184,-500.0,0.00019178,2]
[338313671,1726491044194,-500.0,0.00019178,2]
[338313672,1726491044205,-500.0,0.00019178,2]
[338313673,1726491044214,-500.0,0.00019178,2]
[338313674,1726491044224,-501.20946766,0.00019178,2]
[338313675,1726491044233,-500.0,0.00019178,2]
[338313676,1726491044243,-681.08,0.00019178,2]
[338313677,1726491044256,-709.85,0.00019178,2]
[338313678,1726491044266,-500.0,0.00019178,2]
[338313679,1726491044276,-635.6,0.00019178,2]
[338313680,1726491044285,-2878.53,0.00019178,2]
[338313681,1726491044295,-1960.5,0.00019178,2]
[338313682,1726491044305,-500.0,0.00019178,2]
[338313683,1726491044314,-151.0,0.00019178,2]
[338313684,1726491044324,-551.97,0.00019178,2]
[338313685,1726491044334,-731.17,0.00019178,2]
[338313686,1726491044343,-940.53,0.00019178,2]
[338313687,1726491044353,-839.76,0.00019178,2]
[338313688,1726491044363,-151.0,0.00019178,2]
[338313689,1726491044372,-500.0,0.00019178,2]
[338313690,1726491044382,-500.0,0.00019178,2]
[338313691,1726491044391,-500.0,0.00019178,2]
[338313692,1726491044400,-500.0,0.00019178,2]
[338313694,1726491044410,-854.95,0.00019178,2]
[338313695,1726491044419,-500.0,0.00019178,2]
[338313696,1726491044428,-1603.85,0.00019178,2]
[338313697,1726491044437,-500.0,0.00019178,2]
[338313698,1726491044446,-1170.65,0.00019178,2]
[338313699,1726491044455,-500.0,0.00019178,2]
[338313700,1726491044465,-151.0,0.00019178,2]
[338313701,1726491044474,-503.50943735,0.00019178,2]
[338313702,1726491044484,-500.0,0.00019178,2]
[338313703,1726491044493,-500.0,0.00019178,2]
[338313704,1726491044503,-844.81,0.00019178,2]
[338313705,1726491044512,-511.55222773,0.00019178,2]
[338313706,1726491044521,-500.0,0.00019178,2]
[338313707,1726491044530,-1679.37,0.00019178,2]
[338313708,1726491044540,-500.0,0.00019178,2]
[338313709,1726491044550,-500.0,0.00019178,2]
[338313710,1726491044569,-500.0,0.00019178,2]
[338313711,1726491044581,-500.0,0.00019178,2]
[338313712,1726491044594,-500.0,0.00019178,2]
[338313713,1726491044613,-500.0,0.00019178,2]
[338313714,1726491044634,-151.0,0.00019178,2]
[338313715,1726491044655,-500.0,0.00019178,2]
[338313716,1726491044676,-500.0,0.00019178,2]
[338313717,1726491044697,-630.41,0.00019178,2]
[338313718,1726491044719,-500.0,0.00019178,2]
[338313719,1726491044742,-1572.38,0.00019178,2]
[338313720,1726491044764,-500.0,0.00019178,2]
[338313721,1726491044787,-970.72,0.00019178,2]
[338313722,1726491044810,-151.0,0.00019178,2]
[338313723,1726491044819,-500.0,0.00019178,2]
[338313724,1726491044829,-500.0,0.00019178,2]
[338313725,1726491044839,-218.42486396,0.00019178,2]
[338313726,1726491044848,-908.45,0.00019178,2]
[338313727,1726491044858,-500.0,0.00019178,2]
[338313728,1726491044868,-500.0,0.00019178,2]
[338313729,1726491044878,-151.0,0.00019178,2]
[338313730,1726491044888,-562.7,0.00019178,2]
[338313731,1726491044897,-500.0,0.00019178,2]
[338313732,1726491044907,-151.0,0.00019178,2]
[338313733,1726491044916,-912.84,0.00019178,2]
[338313734,1726491044927,-500.0,0.00019178,2]
[338313735,1726491044937,-508.90721315,0.00019178,2]
[338313736,1726491044947,-2381.63,0.00019178,2]
[338313737,1726491044956,-151.0,0.00019178,2]
[338313738,1726491044966,-1000.0,0.00019178,2]
[338313739,1726491044976,-543.13,0.00019178,2]
[338313740,1726491044985,-500.0,0.00019178,2]
[338313741,1726491044995,-636.25,0.00019178,2]
[338313742,1726491045004,-500.0,0.00019178,2]
[338313743,1726491045014,-1155.48066,0.00019178,2]
[338313744,1726491045023,-151.0,0.00019178,2]
[338313745,1726491045032,-500.0,0.00019178,2]
[338313746,1726491045042,-500.0,0.00019178,2]
[338313747,1726491045055,-500.0,0.00019178,2]
[338313748,1726491045065,-1155.48066,0.00019178,2]
[338313749,1726491045076,-1554.05,0.00019178,2]
[338313750,1726491045085,-500.0,0.00019178,2]
[338313751,1726491045094,-500.0,0.00019178,2]
[338313752,1726491045104,-897.03,0.00019178,2]
[338313753,1726491045113,-500.0,0.00019178,2]
[338313754,1726491045123,-1565.73,0.00019178,2]
[338313755,1726491045132,-151.0,0.00019178,2]
[338313756,1726491045142,-1603.65,0.00019178,2]
[338313757,1726491045151,-500.0,0.00019178,2]
[338313758,1726491045161,-500.0,0.00019178,2]
[338313759,1726491045171,-500.0,0.00019178,2]
[338313760,1726491045180,-500.0,0.00019178,2]
[338313761,1726491045190,-509.52241737,0.00019178,2]
[338313762,1726491045200,-500.0,0.00019178,2]
[338313763,1726491045210,-500.0,0.00019178,2]
[338313764,1726491045219,-500.0,0.00019178,2]
[338313765,1726491045229,-500.0,0.00019178,2]
[338313766,1726491045239,-504.18537589,0.00019178,2]
[338313767,1726491045252,-500.0,0.00019178,2]
[338313768,1726491045262,-827.31,0.00019178,2]
[338313769,1726491045271,-500.0,0.00019178,2]
[338313770,1726491045281,-500.0,0.00019178,2]
[338313771,1726491045291,-1134.16,0.00019178,2]
[338313772,1726491045302,-1237.13,0.00019178,2]
[338313773,1726491045312,-500.53040301,0.00019178,2]
[338313774,1726491045321,-876.5237,0.00019178,2]
[338313775,1726491045331,-589.57,0.00019178,2]
[338313776,1726491045341,-339.40549959,0.00019178,2]
[338313777,1726491045350,-151.776515,0.00019178,2]
[338313778,1726491045359,-151.0,0.00019178,2]
[338313779,1726491045369,-227.422056,0.00019178,2]
[338313780,1726491045378,-579.58,0.00019178,2]
[338313781,1726491045388,-539.46,0.00019178,2]
[338313782,1726491045397,-814.24,0.00019178,2]
[338313783,1726491045407,-1705.86,0.00019178,2]
[338313784,1726491045416,-1346.12,0.00019178,2]
[338313785,1726491045426,-696.71,0.00019178,2]
[338313786,1726491045436,-2198.08,0.00019178,2]
[338313787,1726491045445,-327.29331449,0.00019178,2]
[338313788,1726491045456,-501.46191263,0.00019178,2]
[338313789,1726491045466,-500.0,0.00019178,2]
[338313790,1726491045475,-520.64193083,0.00019178,2]
[338313791,1726491045485,-1483.8,0.00019178,2]
[338313792,1726491045494,-500.0,0.00019178,2]
[338313793,1726491045503,-151.3934,0.00019178,2]
[338313794,1726491045512,-810.21,0.00019178,2]
[338313795,1726491045522,-500.0,0.00019178,2]
[338313796,1726491045533,-1763.52,0.00019178,2]
[338313797,1726491045543,-913.31,0.00019178,2]
[338313798,1726491045555,-4533.2,0.00019178,2]
[338313799,1726491045566,-484.52549303,0.00019178,2]
[338313800,1726491045576,-820.65,0.00019178,2]
[338313801,1726491045596,-500.0,0.00019178,2]
[338313802,1726491045617,-500.0,0.00019178,2]
[338313803,1726491045638,-500.0,0.00019178,2]
[338313804,1726491045660,-526.55640727,0.00019178,2]
[338313805,1726491045682,-503.96621713,0.00019178,2]
[338313806,1726491045706,-563.3,0.00019178,2]
[338313807,1726491045730,-1365.67,0.00019178,2]
[338313808,1726491045753,-500.0,0.00019178,2]
[338313809,1726491045777,-500.0,0.00019178,2]
[338313810,1726491045800,-500.0,0.00019178,2]
[338313811,1726491045823,-560.74,0.00019178,2]
[338313812,1726491045838,-500.0,0.00019178,2]
[338313813,1726491045848,-496.42297456,0.00019178,2]
[338313814,1726491045857,-500.0,0.00019178,2]
[338313815,1726491045867,-151.0,0.00019178,2]
[338313816,1726491045877,-1333.44,0.00019178,2]
[338313817,1726491045887,-500.0,0.00019178,2]
[338313818,1726491045897,-500.0,0.00019178,2]
[338313819,1726491045907,-500.0,0.00019178,2]
[338313820,1726491045917,-500.0,0.00019178,2]
[338313821,1726491045928,-500.0,0.00019178,2]
[338313822,1726491045937,-676.87,0.00019178,2]
[338313823,1726491045948,-500.0,0.00019178,2]
[338313824,1726491045958,-849.48,0.00019178,2]
[338313825,1726491045969,-3504.89,0.00019178,2]
[338313826,1726491045979,-1529.36,0.00019178,2]
[338313827,1726491045988,-500.0,0.00019178,2]
[338313828,1726491045999,-500.0,0.00019178,2]
[338313829,1726491046010,-500.0,0.00019178,2]
[338313830,1726491046021,-500.0,0.00019178,2]
[338313831,1726491046032,-1190.09,0.00019178,2]
[338313832,1726491046041,-225.99297669,0.00019178,2]
[338313833,1726491046052,-500.0,0.00019178,2]
[338313834,1726491046062,-500.0,0.00019178,2]
[338313835,1726491046073,-500.0,0.00019178,2]
[338313836,1726491046083,-610.44,0.00019178,2]
[338313837,1726491046094,-711.18,0.00019178,2]
[338313838,1726491046103,-1862.79,0.00019178,2]
[338313839,1726491046112,-478.8520392,0.00019178,2]
[338313850,1726491046819,-500.0,0.00019173,2]
[338313851,1726491046829,-456.14260723,0.00019173,2]
[338313852,1726491046838,-21.1479608,0.00019178,2]
[338313853,1726491046848,-211.43185,0.00019178,2]
[338313854,1726491046858,-211.43185,0.00019178,2]
[338313855,1726491046868,-211.43185,0.00019178,2]
[338313856,1726491046878,-500.0,0.00019178,2]
[338313857,1726491046888,-1428.13,0.00019178,2]
[338313858,1726491046897,-504.23979667,0.00019178,2]
[338313859,1726491046906,-211.43185,0.00019178,2]
[338313860,1726491046915,-211.43185,0.00019178,2]
[338313861,1726491046924,-500.0,0.00019178,2]
[338313862,1726491046934,-211.43185,0.00019178,2]
[338313863,1726491046944,-500.0,0.00019178,2]
[338313864,1726491046954,-1139.26,0.00019178,2]
[338313865,1726491046965,-4270.97,0.00019178,2]
[338313866,1726491046975,-500.0,0.00019178,2]
[338313867,1726491046986,-500.0,0.00019178,2]
[338313868,1726491046996,-500.0,0.00019178,2]
[338313869,1726491047006,-151.0,0.00019178,2]
[338313870,1726491047016,-1934.38,0.00019178,2]
[338313871,1726491047026,-151.0,0.00019178,2]
[338313872,1726491047035,-500.0,0.00019178,2]
[338313873,1726491047045,-478.86176849,0.00019178,2]
[338313874,1726491047296,-21.13823151,0.00019178,2]
[338313875,1726491047307,-500.0,0.00019178,2]
[338313876,1726491047317,-720.22582302,0.00019178,2]
[338313878,1726491073370,226.0,0.00019168,120]
[338313879,1726491073855,226.0,0.00019158,120]
[338313880,1726491074368,226.0,0.00019148,120]
[338313881,1726491074842,226.0,0.0001999,120]
[338313882,1726491075359,226.0,0.0001998,120]
[338313883,1726491075774,226.0,0.0001997,120]
[338313884,1726491076238,226.0,0.00020798,120]
[338313885,1726491076723,226.0,0.00020788,120]
[338313886,1726491077174,226.0,0.0002189,120]
[338313887,1726491077949,227.77,0.0002188,120]
[338313891,1726491360061,158.834459,0.00013699,2]
[338313892,1726491577440,6175.79643,0.00028,120]
[338313900,1726491894568,158.834459,0.00013699,2]
[338313959,1726492231971,-433.90707799,0.00016,2]
[338313961,1726492231983,-760.904,0.00016,2]
[338313986,1726492238105,-496.07159801,0.00016,2]
[338313987,1726492238115,-810.25100694,0.000165,2]
[338313989,1726492239962,-189.74899306,0.000165,2]
[338313990,1726492239972,-300.0,0.00016952,2]
[338313991,1726492239982,-300.0,0.00016952,2]
[338313992,1726492239993,-24900.0,0.00016953,2]
[338313993,1726492240002,-1000.0,0.00017,2]
[338313994,1726492240013,-1943.239949,0.00017274,2]
[338313995,1726492240023,-1000.0,0.000175,2]
[338313996,1726492240032,-5000.0,0.00017505,2]
[338313997,1726492240042,-10956.0,0.00017826,2]
[338313998,1726492240053,-1000.0,0.00018,2]
[338313999,1726492240064,-150.0,0.00018303,2]
[338314000,1726492240074,-1000.0,0.000185,2]
[338314001,1726492240084,-420.0,0.00018516,2]
[338314002,1726492240093,-420.0,0.00018647,2]
[338314003,1726492240103,-2711.28179436,0.00018799,2]
[338314023,1726492242819,-17.98511795,0.00018799,2]
[338314024,1726492242831,-3000.0,0.000188,2]
[338314025,1726492242844,-3000.0,0.0001881,2]
[338314026,1726492242857,-3000.0,0.0001882,2]
[338314027,1726492242869,-3000.0,0.0001883,2]
[338314028,1726492242882,-3000.0,0.0001884,2]
[338314029,1726492242894,-3000.0,0.0001885,2]
[338314030,1726492242907,-3000.0,0.0001886,2]
[338314031,1726492242919,-3000.0,0.0001887,2]
[338314032,1726492242932,-3000.0,0.0001888,2]
[338314033,1726492242944,-3000.0,0.0001889,2]
[338314034,1726492242955,-1000.0,0.0001889,2]
[338314035,1726492242968,-1825.20789682,0.000189,2]
[338314041,1726492245908,-1174.79210318,0.000189,2]
[338314042,1726492245920,-3000.0,0.0001891,2]
[338314043,1726492245932,-1471.95104977,0.0001892,2]
[338314048,1726492600845,158.834459,0.00013699,2]
[338314057,1726492895722,500.0,0.00027397,120]
[338314058,1726492896023,369.73,0.00027397,120]
[338314069,1726493080474,500.0,0.00028,120]
[338314078,1726493131144,-971.619975,0.00017085,2]
[338314079,1726493131167,-300.0,0.00017183,2]
[338314080,1726493131190,-300.0,0.00017183,2]
[338314081,1726493131213,-24900.0,0.00017184,2]
[338314082,1726493131237,-1000.0,0.000175,2]
[338314083,1726493131262,-5000.0,0.00017751,2]
[338314084,1726493131284,-1680.03992765,0.000179,2]
[338314085,1726493131305,-1000.0,0.00018,2]
[338314086,1726493131326,-150.0,0.00018109,2]
[338314087,1726493131347,-2291.4227446,0.00018145,2]
[338314088,1726493131369,-1680.0399276,0.00018381,2]
[338314089,1726493131391,-1000.0,0.000185,2]
[338314090,1726493131412,-2291.4227446,0.00018645,2]
[338314091,1726493131432,-2711.28179437,0.000187,2]
[338314092,1726493131455,-420.0,0.00018764,2]
[338314093,1726493131476,-3000.0,0.000188,2]
[338314094,1726493131507,-3000.0,0.0001881,2]
[338314095,1726493131529,-3000.0,0.0001882,2]
[338314096,1726493131796,-3000.0,0.0001883,2]
[338314097,1726493131821,-3000.0,0.0001884,2]
[338314098,1726493131844,-1000.0,0.0001884,2]
[338314099,1726493131867,-150.0,0.00018848,2]
[338314100,1726493131889,-3000.0,0.0001885,2]
[338314101,1726493131913,-3000.0,0.0001886,2]
[338314102,1726493131939,-1680.0399276,0.00018863,2]
[338314103,1726493131965,-3000.0,0.0001887,2]
[338314104,1726493131990,-3000.0,0.0001888,2]
[338314105,1726493132013,-3000.0,0.0001889,2]
[338314106,1726493132037,-3000.0,0.000189,2]
[338314107,1726493132061,-420.0,0.00018901,2]
[338314108,1726493132087,-3000.0,0.0001891,2]
[338314109,1726493132109,-3000.0,0.0001892,2]
[338314110,1726493132132,-3000.0,0.0001893,2]
[338314111,1726493132154,-2874.14215506,0.0001894,5]
[338314112,1726493132176,-3000.0,0.0001894,2]
[338314113,1726493132199,-3000.0,0.0001895,2]
[338314114,1726493132221,-206.64,0.0001895,3]
[338314115,1726493132245,-619.96,0.0001895,3]
[338314116,1726493132268,-3000.0,0.0001896,2]
[338314117,1726493132291,-3000.0,0.0001897,2]
[338314118,1726493132313,-3000.0,0.0001898,2]
[338314119,1726493132336,-500.0,0.00018989,2]
[338314120,1726493132359,-522.71367743,0.00018989,2]
[338314121,1726493132383,-46192.6620242,0.0001899,3]
[338314122,1726493132407,-32984.40098589,0.0001899,3]
[338314123,1726493153106,-1000.0,0.0001889,2]
[338314124,1726493153129,-7693.18842351,0.0001899,3]
[338314125,1726493153151,-3000.0,0.0001899,2]
[338314126,1726493153172,-3604.4609172,0.00019,2]
[338314127,1726493153193,-56397.08,0.00019,2]
[338314128,1726493153215,-3000.0,0.00019,2]
[338314129,1726493153236,-1000.0,0.00019,2]
[338314130,1726493153261,-3000.0,0.0001901,2]
[338314131,1726493153282,-3000.0,0.0001902,2]
[338314132,1726493153304,-3000.0,0.0001903,2]
[338314133,1726493153325,-1000.0,0.00019039,2]
[338314134,1726493153345,-3000.0,0.0001904,2]
[338314135,1726493153366,-3000.0,0.0001905,2]
[338314136,1726493153387,-5948.609083,0.0001906,2]
[338314137,1726493153407,-2059.406082,0.00019068,2]
[338314138,1726493153428,-150.112233,0.000191,2]
[338314139,1726493153449,-150.112233,0.000191,2]
[338314140,1726493153469,-150.112233,0.000191,2]
[338314141,1726493153490,-150.112235,0.000191,2]
[338314142,1726493153513,-637.41888204,0.00019117,2]
[338314143,1726493153533,-2291.4227446,0.00019145,2]
[338314144,1726493153555,-500.0,0.00019157,2]
[338314145,1726493153576,-500.0,0.00019157,2]
[338314146,1726493153596,-312.81885036,0.00019157,2]
[338314147,1726493153618,-500.0,0.00019157,2]
[338314148,1726493153640,-500.0,0.00019157,2]
[338314149,1726493153662,-500.0,0.00019157,2]
[338314150,1726493153682,-500.0,0.00019157,2]
[338314151,1726493153704,-500.0,0.00019157,2]
[338314152,1726493153725,-212.99228833,0.00019157,2]
[338314153,1726493153748,-500.0,0.00019157,2]
[338314154,1726493153771,-500.0,0.00019157,2]
[338314155,1726493153792,-205.5735494,0.00019157,2]
[338314156,1726493153812,-500.0,0.00019157,2]
[338314157,1726493153833,-500.0,0.00019157,2]
[338314158,1726493153855,-500.0,0.00019157,2]
[338314159,1726493153876,-500.0,0.00019157,2]
[338314160,1726493153898,-500.0,0.00019157,2]
[338314161,1726493153920,-500.0,0.00019157,2]
[338314162,1726493153943,-500.0,0.00019157,2]
[338314163,1726493153966,-500.0,0.00019157,2]
[338314164,1726493153997,-297.08713219,0.00019157,2]
[338314165,1726493154020,-19322.07099637,0.00019158,3]
[338314166,1726493169327,700.0,0.00028,120]
[338314167,1726493225120,-5000.0,0.00018168,2]
[338314168,1726493225144,-1000.0,0.0001889,2]
[338314169,1726493225167,-300.0,0.00019157,2]
[338314170,1726493225191,-300.0,0.00019157,2]
[338314171,1726493225217,-26870.59102783,0.00019158,3]
[338314172,1726493225243,-2231.81665841,0.00019158,3]
[338314173,1726493225281,-38445.77275099,0.00019158,3]
[338314174,1726493225303,-162.33567537,0.00019167,2]
[338314175,1726493225325,-353.03841683,0.00019167,2]
[338314176,1726493225347,-500.0,0.00019167,2]
[338314177,1726493225369,-628.29445341,0.00019167,2]
[338314178,1726493225391,-500.0,0.00019167,2]
[338314179,1726493225414,-500.0,0.00019167,2]
[338314180,1726493225436,-500.0,0.00019167,2]
[338314181,1726493225458,-500.0,0.00019167,2]
[338314182,1726493225480,-500.0,0.00019167,2]
[338314183,1726493225503,-500.0,0.00019167,2]
[338314184,1726493225524,-611.28877553,0.00019167,2]
[338314185,1726493225545,-500.0,0.00019167,2]
[338314186,1726493225567,-500.0,0.00019167,2]
[338314187,1726493225590,-500.0,0.00019167,2]
[338314188,1726493225612,-500.0,0.00019167,2]
[338314189,1726493225635,-500.0,0.00019167,2]
[338314190,1726493225657,-347.51986826,0.00019167,2]
[338314191,1726493225678,-500.0,0.00019167,2]
[338314192,1726493225701,-500.0,0.00019167,2]
[338314193,1726493225724,-500.0,0.00019167,2]
[338314194,1726493225747,-500.0,0.00019167,2]
[338314195,1726493225771,-527.90214287,0.00019167,2]
[338314196,1726493225793,-1437.07107753,0.00019167,5]
[338314197,1726493225817,-46192.6620242,0.00019168,3]
[338314198,1726493225840,-40677.5894094,0.00019168,3]
[338314199,1726493225861,-163.2247,0.00019168,2]
[338314200,1726493225883,-151.0,0.00019168,2]
[338314201,1726493225904,-151.3934,0.00019168,2]